bitfinex-derivatives/quotes_SOLF0:USTF0_20250923
["timestamp","ask_amount","ask_price","bid_price","bid_amount"]
[1758611884596,7.38,219.09,219.0,4.1065]
[1758611885194,7.38,219.09,219.01,0.19]
[1758611885788,7.38,219.09,218.97,4.297]
[1758611885989,10.36423823,219.09,218.97,4.297]
[1758611886897,7.38,219.07,218.97,4.297]
[1758611888687,11.4855,219.07,218.97,4.297]
[1758611888994,7.38,219.07,218.94,4.1076]
[1758611889296,4.1057,219.05,218.93,0.19]
[1758611889498,7.38,219.04,218.93,0.19]
[1758611890085,7.38,219.04,218.97,4.1072]
[1758611890500,7.38,219.04,218.93,0.19]
[1758611890694,9.28787052,219.04,218.95,1.90787052]
[1758611890894,9.28787052,219.04,218.95,6.01527052]
[1758611891799,9.28787052,219.04,218.96,4.1072]
[1758611892100,9.28787052,219.04,218.95,1.90787052]
[1758611892498,9.28787052,219.04,218.97,4.107]
[1758611894797,7.38,219.04,218.97,4.107]
[1758611895400,1.90787052,219.06,218.99,4.1068]
[1758611895605,7.38,219.03,219.0,0.19]
[1758611896704,7.38,219.07,218.99,1.90787052]
[1758611896902,7.38,219.07,218.97,1.90787052]
[1758611897304,11.4855,219.07,218.97,6.01487052]
[1758611898501,11.4855,219.07,218.99,4.1068]
[1758611898702,7.38,219.07,219.0,0.2]
[1758611899903,7.38,219.07,219.01,4.1063]
[1758611900710,7.66,219.12,219.03,1.90787052]
[1758611902008,7.66,219.12,219.05,6.01357052]
[1758611903112,1.90787052,219.14,219.07,4.1053]
[1758611903308,7.66,219.15,219.07,4.1053]
[1758611903510,7.66,219.15,219.09,0.2]
[1758611904815,7.66,219.15,219.09,4.3049]
[1758611905005,7.66,219.15,219.11,1.90787052]
[1758611905515,7.66,219.15,219.11,2.10787052]
[1758611906112,0.72679734,219.19,219.12,0.2]
[1758611906313,7.66,219.18,219.14,1.90787052]
[1758611906509,0.72679734,219.19,219.14,1.90787052]
[1758611906909,7.66,219.18,219.14,1.90787052]
[1758611907316,0.72679734,219.19,219.14,1.90787052]
[1758611907515,7.66,219.18,219.14,1.90787052]
[1758611907715,7.66,219.18,219.14,2.10787052]
[1758611909719,6.00987052,219.25,219.15,0.2]
[1758611909920,7.66,219.24,219.15,0.2]
[1758611910420,7.66,219.24,219.15,4.3038]
[1758611912320,7.66,219.24,219.15,0.2]
[1758611912524,9.37787052,219.22,219.12,6.01217052]
[1758611915122,7.47,219.22,219.14,4.104]
[1758611915318,7.47,219.22,219.15,1.90787052]
[1758611915828,11.5726,219.22,219.15,1.90787052]
[1758611916429,7.47,219.22,219.15,1.90787052]
[1758611917624,7.47,219.22,219.13,1.90787052]
[1758611917824,9.37787052,219.22,219.13,1.90787052]
[1758611918022,9.37787052,219.22,219.11,2.08787052]
[1758611918628,1.90787052,219.22,219.11,2.08787052]
[1758611918923,7.47,219.2,219.11,2.08787052]
[1758611919830,7.47,219.18,219.11,2.08787052]
[1758611920030,7.47,219.18,219.11,0.18]
[1758611920329,7.47,219.18,219.11,2.08787052]
[1758611921729,7.47,219.18,219.07,2.08787052]
[1758611923125,4.1036,219.17,219.08,4.1051]
[1758611923327,7.47,219.16,219.07,2.08787052]
[1758611923528,9.37787052,219.16,219.05,1.90787052]
[1758611924129,7.47,219.14,219.05,1.90787052]
[1758611928041,7.47,219.14,219.05,2.08787052]
[1758611931545,7.47,219.14,219.05,6.19337052]
[1758611931741,7.47,219.14,219.07,1.90787052]
[1758611932047,7.47,219.19,219.11,1.90787052]
[1758611932447,7.47,219.19,219.09,6.01277052]
[1758611933242,7.47,219.19,219.11,4.1045]
[1758611933448,7.47,219.19,219.11,1.90787052]
[1758611934351,7.47,219.19,219.13,1.90787052]
[1758611934852,7.47,219.19,219.13,6.01207052]
[1758611937758,7.47,219.19,219.15,1.90787052]
[1758611937954,7.47,219.25,219.17,1.90787052]
[1758611938847,7.47,219.25,219.16,2.08787052]
[1758611939550,4.1021,219.24,219.16,1.90787052]
[1758611939762,7.47,219.23,219.16,1.90787052]
[1758611940668,7.47,219.23,219.14,4.1038]
[1758611940960,11.5725,219.23,219.14,6.01167052]
[1758611941661,63.8007,219.28,219.12,0.18]
[1758611941662,4.1027,219.21,219.12,0.18]
[1758611941961,9.05787052,219.2,219.11,4.1045]
[1758611942760,13.16087052,219.2,219.11,4.1045]
[1758611946058,4.1032,219.18,219.1,2.06787052]
[1758611946257,7.15,219.17,219.1,2.06787052]
[1758611946459,1.90787052,219.18,219.08,9.83845418]
[1758611946659,7.15,219.17,219.08,9.83845418]
[1758611946863,7.15,219.14,219.07,3.82558366]
[1758611947361,7.15,219.14,219.06,3.98558366]
[1758611948358,7.15,219.14,219.07,3.82558366]
[1758611949266,7.15,219.14,219.06,5.89345418]
[1758611950569,7.15,219.14,219.06,3.98558366]
[1758611950762,7.15,219.14,219.06,8.09088366]
[1758611950968,7.15,219.14,219.07,3.82558366]
[1758611951371,7.15,219.19,219.09,3.98558366]
[1758611951871,4.1036,219.16,219.09,3.82558366]
[1758611952069,7.15,219.15,219.09,3.82558366]
[1758611953069,7.15,219.15,219.09,3.83556015]
[1758611953769,11.254,219.15,219.09,3.83556015]
[1758611953960,11.254,219.15,219.06,7.94086015]
[1758611954263,4.1042,219.14,219.06,7.94086015]
[1758611954565,7.15,219.13,219.06,7.94086015]
[1758611955567,7.15,219.13,219.06,3.83556015]
[1758611955768,7.15,219.11,219.05,3.99556015]
[1758611956465,7.52,219.14,219.06,4.1055]
[1758611956664,7.52,219.14,219.06,7.94106015]
[1758611958275,7.52,219.14,219.07,7.94066015]
[1758611959672,7.52,219.14,219.07,4.1051]
[1758611960170,7.52,219.14,219.07,7.94066015]
[1758611961482,7.52,219.14,219.08,0.19]
[1758611961682,7.52,219.18,219.08,4.02556015]
[1758611962175,7.52,219.15,219.08,3.83556015]
[1758611963775,7.52,219.15,219.09,0.19]
[1758611966777,7.52,219.15,219.1,4.1047]
[1758611966977,7.52,219.2,219.11,0.19]
[1758611969582,11.623,219.2,219.11,4.2944]
[1758611969879,7.52,219.2,219.11,4.02556015]
[1758611970081,7.52,219.2,219.13,3.83556015]
[1758611970283,7.52,219.2,219.14,4.02556015]
[1758611971789,7.52,219.2,219.14,8.12936015]
[1758611971986,7.52,219.2,219.14,4.02556015]
[1758611973784,7.52,219.2,219.15,4.1036]
[1758611973979,7.52,219.2,219.16,0.19]
[1758611974173,69.13810419,219.25,219.15,4.1036]
[1758611974174,7.65,219.24,219.15,4.1036]
[1758611975084,8.65,219.24,219.15,4.1036]
[1758611976186,8.65,219.24,219.17,4.1034]
[1758611978989,1.0,219.24,219.19,4.103]
[1758611979286,1.0,219.24,219.2,0.19]
[1758611979287,7.65,219.23,219.2,0.19]
[1758611979590,7.65,219.23,219.16,4.1034]
[1758611980085,7.65,219.23,219.17,3.83556015]
[1758611981089,7.65,219.23,219.16,3.83556015]
[1758611981891,7.65,219.23,219.17,4.1033]
[1758611982690,7.65,219.23,219.17,4.2933]
[1758611982983,7.65,219.23,219.15,3.83556015]
[1758611983183,7.65,219.23,219.14,7.93946015]
[1758611986794,4.1026,219.22,219.14,7.93946015]
[1758611986990,7.65,219.21,219.14,4.1039]
[1758611988995,7.65,219.23,219.16,4.1036]
[1758611993291,11.7525,219.23,219.13,4.294]
[1758611993490,7.65,219.23,219.13,4.294]
[1758611994902,7.65,219.19,219.13,4.294]
[1758611995303,7.65,219.19,219.11,7.94006015]
[1758611995499,7.65,219.19,219.11,4.1045]
[1758611996007,7.65,219.19,219.07,3.83556015]
[1758611996209,7.65,219.19,219.08,0.19]
[1758611996509,7.65,219.21,219.09,0.19]
[1758611997710,7.65,219.21,219.1,66.8294254]
[1758611997904,7.65,219.21,219.11,4.02556015]
[1758611998110,7.65,219.21,219.12,0.19]
[1758611999809,7.65,219.21,219.12,4.2942]
[1758612000010,7.65,219.21,219.12,8.12976015]
[1758612000410,11.7528,219.21,219.12,8.12976015]
[1758612000606,7.65,219.21,219.12,3.83556015]
[1758612000811,7.65,219.21,219.09,7.94036015]
[1758612001213,7.65,219.21,219.1,3.83556015]
[1758612001413,7.62,219.16,219.09,7.94036015]
[1758612001908,7.62,219.16,219.09,3.83556015]
[1758612002107,11.7238,219.16,219.08,4.02556015]
[1758612002504,7.62,219.16,219.08,4.02556015]
[1758612003121,7.62,219.16,219.09,3.83556015]
[1758612003314,7.62,219.16,219.1,0.19]
[1758612003911,7.62,219.16,219.11,4.1045]
[1758612004117,7.62,219.19,219.12,0.19]
[1758612005314,7.62,219.19,219.12,4.02556015]
[1758612005514,7.62,219.19,219.13,0.19]
[1758612006212,7.62,219.19,219.13,4.02556015]
[1758612006818,4.1025,219.23,219.14,4.1038]
[1758612007112,7.62,219.22,219.14,0.19]
[1758612008422,7.62,219.22,219.16,4.1036]
[1758612008622,7.62,219.22,219.14,0.19]
[1758612009520,7.62,219.22,219.15,4.1038]
[1758612011215,7.62,219.22,219.14,4.02556015]
[1758612011416,7.62,219.23,219.17,4.1034]
[1758612016724,1.0,219.24,219.2,0.18]
[1758612016919,7.22,219.23,219.2,0.18]
[1758612018022,7.22,219.23,219.2,4.2827]
[1758612018829,7.22,219.23,219.16,3.83556015]
[1758612019027,7.22,219.23,219.17,0.18]
[1758612019227,7.22,219.23,219.17,5.91999256]
[1758612019930,7.22,219.23,219.18,3.83556015]
[1758612020528,7.22,219.23,219.19,0.18]
[1758612020830,7.22,219.23,219.19,4.2829]
[1758612021929,7.22,219.23,219.19,10.02289256]
[1758612022631,7.22,219.23,219.19,3.83556015]
[1758612022932,7.22,219.23,219.17,1.90443241]
[1758612022933,7.22,219.23,219.17,3.83556015]
[1758612024033,7.22,219.23,219.16,9.84349256]
[1758612025332,7.22,219.23,219.16,4.1035]
[1758612025532,7.22,219.23,219.15,4.01556015]
[1758612025732,7.22,219.23,219.15,5.91999256]
[1758612025935,7.22,219.23,219.15,4.01556015]
[1758612026131,7.22,219.23,219.15,5.91999256]
[1758612028935,7.22,219.23,219.16,4.1036]
[1758612029234,7.22,219.23,219.17,1.90443241]
[1758612029834,1.0,219.24,219.19,1.90443241]
[1758612030334,8.22,219.24,219.2,0.18]
[1758612031039,8.22,219.24,219.21,1.90443241]
[1758612031338,8.22,219.24,219.21,2.08443241]
[1758612032337,8.52,219.24,219.21,2.08443241]
[1758612032543,1.0,219.24,219.21,1.90443241]
[1758612032740,7.52,219.23,219.21,1.90443241]
[1758612033440,7.52,219.23,219.19,5.73999256]
[1758612033641,1.0,219.24,219.19,2.08443241]
[1758612033840,7.52,219.23,219.18,7.93876015]
[1758612034542,8.52,219.24,219.18,7.93876015]
[1758612035146,8.52,219.24,219.18,7.93695336]
[1758612036741,8.52,219.24,219.18,3.83375336]
[1758612036947,10.42443241,219.24,219.15,7.93745336]
[1758612037948,10.42443241,219.24,219.15,3.83375336]
[1758612038137,7.52,219.21,219.14,3.83375336]
[1758612039046,7.52,219.21,219.14,7.93775336]
[1758612040052,7.52,219.21,219.15,1.90443241]
[1758612042143,7.52,219.21,219.15,5.73818577]
[1758612042547,7.52,219.21,219.15,3.83375336]
[1758612042747,7.52,219.21,219.14,4.104]
[1758612042948,7.52,219.21,219.14,3.83540117]
[1758612043945,7.52,219.21,219.15,3.83540117]
[1758612044445,7.52,219.21,219.13,3.83540117]
[1758612046444,7.52,219.21,219.13,7.93950117]
[1758612047251,7.52,219.21,219.14,3.83540117]
[1758612048047,7.52,219.21,219.15,0.18]
[1758612048350,7.52,219.21,219.15,4.01540117]
[1758612051449,7.52,219.21,219.15,8.11910117]
[1758612052949,1.90443241,219.23,219.15,8.11910117]
[1758612052950,7.52,219.22,219.16,3.83540117]
[1758612054250,1.0,219.24,219.2,1.90443241]
[1758612054456,1.0,219.24,219.23,0.18]
[1758612055759,0.4211961,219.24,219.23,0.18]
[1758612056358,9.61e-05,219.24,219.23,0.64]
[1758612056558,7.52,219.31,219.25,4.1018]
[1758612056759,7.52,219.34,219.27,1.90443241]
[1758612058257,7.52,219.34,219.25,5.73938985]
[1758612058658,7.52,219.34,219.25,1.90443241]
[1758612059960,9.42443241,219.34,219.25,1.90443241]
[1758612060956,9.38443241,219.32,219.21,6.00693241]
[1758612061154,7.48,219.32,219.24,1.90443241]
[1758612061556,7.48,219.32,219.25,4.1019]
[1758612062363,7.48,219.32,219.25,6.00633241]
[1758612063868,7.48,219.35,219.28,0.18]
[1758612064165,7.48,219.35,219.27,4.1014]
[1758612064554,7.48,219.35,219.29,4.1011]
[1758612065864,7.48,219.38,219.3,0.18]
[1758612066662,7.48,219.36,219.27,1.90443241]
[1758612067965,0.65424982,219.39,219.26,0.18]
[1758612067966,1.90443241,219.35,219.26,0.18]
[1758612068164,7.48,219.34,219.26,0.18]
[1758612068759,7.48,219.34,219.27,4.1015]
[1758612069968,1.90443241,219.36,219.29,4.2811]
[1758612070266,7.48,219.37,219.29,4.2811]
[1758612070767,1.90443241,219.36,219.29,4.1011]
[1758612071069,7.48,219.35,219.29,4.1011]
[1758612071265,1.90443241,219.32,219.25,0.18]
[1758612071470,7.48,219.25,219.16,3.83495744]
[1758612071667,7.48,219.25,219.15,5.73938985]
[1758612071869,7.48,219.25,219.15,1.90443241]
[1758612072268,7.48,219.25,219.19,1.90443241]
[1758612073362,7.48,219.25,219.2,4.1027]
[1758612074171,1.90443241,219.28,219.2,4.1027]
[1758612074371,7.48,219.27,219.2,4.1027]
[1758612076777,7.48,219.27,219.17,4.1033]
[1758612078377,7.48,219.27,219.19,4.103]
[1758612080784,7.48,219.27,219.16,4.1034]
[1758612081883,7.71,219.28,219.18,4.1032]
[1758612082680,7.71,219.28,219.19,4.1029]
[1758612083483,7.71,219.28,219.21,4.1026]
[1758612090297,7.71,219.28,219.23,4.1021]
[1758612090499,7.71,219.28,219.2,67.65705744]
[1758612091197,6.98,219.34,219.25,4.1017]
[1758612092003,6.98,219.34,219.27,4.1015]
[1758612093896,6.98,219.34,219.24,63.8101]
[1758612094090,6.98,219.34,219.26,63.8055]
[1758612094898,6.98,219.34,219.31,4.1008]
[1758612095099,6.98,219.38,219.31,4.1008]
[1758612095901,7.63424982,219.39,219.33,4.1004]
[1758612096199,6.98,219.39,219.33,4.1004]
[1758612098501,1.0,219.41,219.33,63.7852]
[1758612098704,1.0,219.41,219.34,2.97456949]
[1758612099203,1.0,219.41,219.36,4.0998]
[1758612099701,7.98,219.41,219.36,4.0998]
[1758612101202,1.0,219.41,219.38,4.0995]
[1758612107210,1.0,219.41,219.38,4.0995]
[1758612108910,1.0,219.41,219.38,7.07406949]
[1758612110811,1.0,219.41,219.38,4.0995]
[1758612111007,2.97456949,219.53,219.5,67.02]
[1758612111217,4.0969,219.52,219.5,26.644699]
[1758612111401,4.0969,219.52,219.31,63.7889]
[1758612111402,63.7392,219.49,219.33,7.05]
[1758612111606,4.0981,219.46,219.33,7.05]
[1758612113312,2.97456949,219.44,219.33,7.05]
[1758612113614,2.97456949,219.44,219.27,2.97456949]
[1758612113615,2.97456949,219.44,219.28,7.05]
[1758612113815,2.97456949,219.44,219.31,4.1008]
[1758612114010,2.97456949,219.44,219.32,7.05]
[1758612114407,2.97456949,219.44,219.33,4.1004]
[1758612114717,4.0982,219.46,219.34,7.05]
[1758612115616,4.0984,219.44,219.34,7.05]
[1758612117814,4.098,219.47,219.36,7.05]
[1758612119318,2.97456949,219.48,219.37,4.0997]
[1758612119517,2.97456949,219.48,219.38,7.05]
[1758612120219,7.07226949,219.48,219.38,7.05]
[1758612120813,7.07226949,219.48,219.39,4.0993]
[1758612121214,4.098,219.46,219.31,66.76436949]
[1758612121419,4.098,219.46,219.36,7.19]
[1758612122321,4.098,219.46,219.31,66.76436949]
[1758612122322,4.0976,219.49,219.38,7.19]
[1758612123324,4.0976,219.49,219.39,4.0993]
[1758612123622,4.0976,219.49,219.4,7.19]
[1758612123824,4.0969,219.52,219.42,7.19]
[1758612124019,0.79328896,219.57,219.42,7.19]
[1758612124020,63.725,219.54,219.42,7.19]
[1758612124421,63.725,219.54,219.33,67.61915744]
[1758612124422,4.0976,219.48,219.38,4.0994]
[1758612124617,4.0976,219.48,219.39,7.19]
[1758612125326,4.0976,219.48,219.4,4.0991]
[1758612127833,4.0976,219.48,219.39,7.19]
[1758612128621,4.0976,219.48,219.4,7.19]
[1758612129424,4.098,219.46,219.4,7.19]
[1758612130617,63.7187,219.56,219.4,2.97456949]
[1758612130819,2.97456949,219.54,219.41,7.19]
[1758612131020,63.7274,219.53,219.41,7.19]
[1758612131227,63.7397,219.49,219.34,7.19]
[1758612131532,66.72286949,219.46,219.34,7.19]
[1758612131726,2.97456949,219.46,219.34,11.2902]
[1758612132030,2.97456949,219.46,219.35,7.19]
[1758612132232,4.0988,219.42,219.35,7.19]
[1758612132431,2.97456949,219.42,219.26,3.83495744]
[1758612132731,2.97456949,219.38,219.27,7.19]
[1758612133039,63.7744,219.37,219.27,7.19]
[1758612133330,63.778,219.36,219.27,7.19]
[1758612133532,4.1007,219.32,219.27,7.19]
[1758612133827,4.1007,219.32,219.24,7.19]
[1758612134038,63.7872,219.33,219.24,7.19]
[1758612134530,1.9039521,219.27,219.24,7.19]
[1758612135828,2.9039521,219.27,219.24,7.19]
[1758612136023,2.9039521,219.27,219.2,7.19]
[1758612140232,1.0,219.27,219.2,7.19]
[1758612144634,2.9039521,219.27,219.2,7.19]
[1758612145137,7.0056521,219.27,219.2,7.19]
[1758612147436,1.0,219.27,219.2,7.19]
[1758612147640,1.0,219.27,219.21,4.1027]
[1758612148940,1.0,219.27,219.22,7.08]
[1758612149239,1.0,219.27,219.21,4.1027]
[1758612149942,1.0,219.27,219.22,7.08]
[1758612150142,1.0,219.27,219.24,1.9039521]
[1758612150831,1.0,219.27,219.25,7.72]
[1758612151036,1.0,219.27,219.26,9.6239521]
[1758612151842,0.3553233,219.27,219.26,9.6239521]
[1758612152446,63.751,219.45,219.26,9.6239521]
[1758612152646,4.0996,219.38,219.3,7.72]
[1758612154444,1.9039521,219.37,219.3,7.72]
[1758612155642,4.0996,219.38,219.3,9.6239521]
[1758612157547,4.0991,219.41,219.31,4.1008]
[1758612157749,4.0991,219.41,219.34,1.9039521]
[1758612157941,4.0991,219.41,219.35,7.72]
[1758612158446,4.0985,219.44,219.35,7.72]
[1758612159350,1.9039521,219.43,219.35,7.72]
[1758612159542,4.0988,219.42,219.35,7.72]
[1758612161449,1.9039521,219.43,219.35,7.72]
[1758612162544,1.9039521,219.43,219.35,11.8201]
[1758612162744,1.9039521,219.45,219.36,9.6239521]
[1758612163147,70.19162653,219.46,219.36,9.6239521]
[1758612164248,4.0984,219.44,219.36,9.6239521]
[1758612167847,4.0984,219.44,219.37,1.9039521]
[1758612168051,4.0984,219.44,219.38,7.72]
[1758612169249,4.0988,219.42,219.37,1.9039521]
[1758612169756,66.09352653,219.46,219.38,7.72]
[1758612170656,66.09352653,219.46,219.4,7.72]
[1758612173058,70.19172653,219.46,219.4,7.72]
[1758612175748,1.9039521,219.44,219.32,7.72]
[1758612175952,1.9039521,219.44,219.34,7.72]
[1758612176661,4.0991,219.41,219.34,7.72]
[1758612176864,4.0991,219.41,219.35,1.9039521]
[1758612177059,4.0991,219.41,219.36,7.72]
[1758612177461,4.0991,219.41,219.35,1.9039521]
[1758612177758,4.0985,219.44,219.38,1.9039521]
[1758612177957,4.0985,219.44,219.39,7.72]
[1758612178264,4.0985,219.44,219.38,9.6239521]
[1758612179070,4.0987,219.43,219.38,7.72]
[1758612179263,4.0987,219.43,219.37,7.72]
[1758612179656,70.19172653,219.46,219.37,7.72]
[1758612179851,66.09352653,219.46,219.37,7.72]
[1758612180758,4.0984,219.45,219.37,7.72]
[1758612180964,66.09352653,219.46,219.4,1.9039521]
[1758612181163,66.09352653,219.46,219.41,7.61]
[1758612181463,66.09352653,219.46,219.4,9.5139521]
[1758612183166,4.098,219.47,219.4,9.5139521]
[1758612183562,4.0975,219.5,219.4,13.6130521]
[1758612183962,4.0975,219.5,219.42,1.9039521]
[1758612184264,4.0975,219.5,219.42,9.5139521]
[1758612185158,4.0975,219.5,219.42,7.61]
[1758612185360,2.54334266,219.51,219.42,7.61]
[1758612185959,4.098,219.46,219.37,7.61]
[1758612186159,4.098,219.46,219.37,9.5139521]
[1758612187868,4.098,219.46,219.37,13.6134521]
[1758612188364,4.0976,219.48,219.4,7.61]
[1758612188559,4.0976,219.48,219.4,9.5139521]
[1758612189466,4.0976,219.48,219.4,13.6129521]
[1758612192261,0.63939056,219.51,219.44,7.61]
[1758612192262,4.73669056,219.51,219.44,7.61]
[1758612194362,4.0967,219.54,219.46,1.9039521]
[1758612194660,3.51971593,219.53,219.47,7.61]
[1758612194868,4.0962,219.56,219.47,11.7077]
[1758612195166,3.51974311,219.55,219.47,7.61]
[1758612195369,4.0962,219.56,219.47,7.61]
[1758612196359,3.51958618,219.55,219.47,7.61]
[1758612196565,4.0962,219.56,219.48,4.0975]
[1758612196762,3.51958618,219.55,219.48,4.0975]
[1758612196963,4.0962,219.56,219.49,7.41]
[1758612197366,66.59142984,219.58,219.49,7.41]
[1758612197367,0.64169322,219.58,219.5,4.0972]
[1758612197671,4.0957,219.59,219.51,7.41]
[1758612197873,3.51891141,219.58,219.51,7.41]
[1758612198068,4.0957,219.59,219.51,7.41]
[1758612200172,63.7076,219.6,219.51,7.41]
[1758612200476,3.51793166,219.59,219.51,7.41]
[1758612200775,4.0963,219.55,219.48,7.41]
[1758612201274,66.66942219,219.62,219.48,7.41]
[1758612201461,3.51644381,219.61,219.48,7.41]
[1758612201661,3.51644381,219.6,219.48,7.41]
[1758612201868,3.51644381,219.59,219.48,7.41]
[1758612202076,66.66942219,219.62,219.48,7.41]
[1758612202275,4.0965,219.54,219.48,7.41]
[1758612202471,63.7137,219.58,219.48,7.41]
[1758612202472,63.717,219.57,219.48,7.41]
[1758612202868,4.0963,219.55,219.48,7.41]
[1758612204677,4.096,219.58,219.49,7.41]
[1758612204871,63.7084,219.6,219.49,7.41]
[1758612205073,3.51608771,219.59,219.49,7.41]
[1758612205275,4.0961,219.57,219.49,7.41]
[1758612207080,63.71,219.59,219.49,7.41]
[1758612207880,4.0965,219.55,219.49,7.41]
[1758612209568,4.0967,219.54,219.47,7.41]
[1758612209768,63.723,219.55,219.47,7.41]
[1758612209973,63.723,219.55,219.44,7.41]
[1758612210173,63.7293,219.53,219.44,7.41]
[1758612210578,63.7363,219.5,219.39,97.54598303]
[1758612210778,63.742,219.48,219.4,7.69]
[1758612211782,4.0986,219.43,219.4,7.69]
[1758612211981,2.96692219,219.49,219.35,2.96692219]
[1758612212175,4.0984,219.45,219.36,7.69]
[1758612213283,4.0984,219.45,219.36,11.7897]
[1758612213481,4.0984,219.45,219.37,7.69]
[1758612213779,2.96692219,219.49,219.37,7.69]
[1758612213780,4.0978,219.48,219.37,7.69]
[1758612214480,4.0981,219.46,219.37,7.69]
[1758612216884,63.7479,219.46,219.37,7.69]
[1758612217582,63.7422,219.48,219.34,4.1002]
[1758612217884,3.52123494,219.47,219.35,7.69]
[1758612218087,63.7422,219.48,219.35,7.69]
[1758612218284,3.52105564,219.47,219.35,7.69]
[1758612218480,63.7422,219.48,219.35,7.69]
[1758612218783,4.0984,219.45,219.35,7.69]
[1758612219687,4.0984,219.45,219.34,4.1002]
[1758612219688,4.0978,219.48,219.36,4.0998]
[1758612219881,63.7363,219.5,219.37,7.69]
[1758612220082,3.52073487,219.49,219.37,7.69]
[1758612220282,4.098,219.46,219.38,4.0995]
[1758612220481,4.098,219.46,219.39,7.69]
[1758612221984,4.0976,219.49,219.4,4.0991]
[1758612222186,4.0976,219.49,219.41,7.69]
[1758612222583,4.0978,219.48,219.41,7.69]
[1758612223481,63.7424,219.48,219.41,7.69]
[1758612223682,63.7424,219.48,219.35,7.69]
[1758612224086,4.0984,219.44,219.36,7.69]
[1758612224585,63.7424,219.48,219.36,7.69]
[1758612224777,4.0988,219.42,219.36,7.69]
[1758612228180,63.7577,219.43,219.36,7.69]
[1758612228379,63.7577,219.43,219.29,2.96692219]
[1758612228380,63.7623,219.41,219.31,7.69]
[1758612229084,4.0993,219.39,219.31,7.69]
[1758612229586,4.0989,219.42,219.31,11.7906]
[1758612229887,2.96692219,219.43,219.32,7.69]
[1758612230386,4.0988,219.42,219.34,7.69]
[1758612232081,4.0991,219.41,219.34,7.69]
[1758612233185,4.0986,219.44,219.34,4.1003]
[1758612233388,4.0986,219.44,219.35,7.69]
[1758612236488,4.098,219.46,219.36,7.69]
[1758612236786,4.0976,219.49,219.37,2.96692219]
[1758612236990,63.7315,219.52,219.38,7.69]
[1758612237892,4.0978,219.47,219.39,4.0993]
[1758612238595,4.0978,219.47,219.4,7.69]
[1758612242200,4.0971,219.51,219.4,2.96692219]
[1758612242399,63.7188,219.56,219.41,7.46]
[1758612242900,4.0969,219.52,219.43,4.0986]
[1758612243103,4.0969,219.52,219.44,7.46]
[1758612246401,4.0973,219.5,219.44,7.46]
[1758612247593,4.0967,219.53,219.44,7.46]
[1758612247993,63.7256,219.54,219.44,7.46]
[1758612248200,63.7335,219.51,219.4,7.46]
[1758612248602,4.0978,219.47,219.4,7.46]
[1758612249898,63.7335,219.51,219.4,7.46]
[1758612250101,63.7362,219.5,219.4,7.46]
[1758612251505,63.7451,219.47,219.36,7.46]
[1758612251695,63.7481,219.46,219.36,7.46]
[1758612252802,4.0988,219.42,219.36,7.46]
[1758612254607,4.0983,219.45,219.36,7.46]
[1758612255906,4.0983,219.45,219.38,7.46]
[1758612257006,4.0978,219.48,219.4,1.9005936]
[1758612257208,4.0978,219.48,219.41,7.08]